bitfinex/quotes_SOLUSD_20250406
["timestamp","ask_amount","ask_price","bid_price","bid_amount"]
[1743965294323,0.063,108.67,108.6,46.39119525]
[1743965294492,0.063,108.67,108.61,26.14216157]
[1743965294692,0.063,108.67,108.64,46.24903368]
[1743965294920,0.063,108.67,108.66,46.67551839]
[1743965295092,0.063,108.67,108.66,65.32516725]
[1743965295291,16.9474,108.75,108.67,19.07613357]
[1743965295292,16.9473,108.75,108.67,19.07613357]
[1743965295509,46.24903368,108.73,108.67,0.42648471]
[1743965295700,86.18483368,108.75,108.67,46.67551839]
[1743965296024,46.24903368,108.68,108.64,0.42648471]
[1743965296225,0.14216157,108.74,108.64,0.42648471]
[1743965296523,9.2021,108.67,108.63,18.933972]
[1743965296823,9.2021,108.67,108.63,46.39119525]
[1743965297023,55.44863368,108.7,108.65,46.24903368]
[1743965297194,55.44773368,108.72,108.67,46.53335682]
[1743965297398,55.44773368,108.72,108.67,46.24903368]
[1743965297597,9.1987,108.72,108.66,0.42648471]
[1743965297816,46.24903368,108.69,108.63,18.64964886]
[1743965298027,32.1935,108.72,108.66,46.67551839]
[1743965298028,46.24903368,108.71,108.66,46.67551839]
[1743965298337,9.1987,108.72,108.68,46.67551839]
[1743965298822,0.063,108.73,108.67,82.9]
[1743965299025,0.063,108.73,108.71,0.42648471]
[1743965299400,0.063,108.73,108.71,46.67551839]
[1743965299625,0.063,108.73,108.72,46.53335682]
[1743965299817,0.063,108.73,108.72,46.67551839]
[1743965300019,0.063,108.73,108.71,344.66]
[1743965300698,0.063,108.73,108.72,46.67551839]
[1743965300904,0.063,108.73,108.72,111.57420093]
[1743965301208,0.063,108.73,108.72,331.17420093]
[1743965301409,0.063,108.78,108.77,18.79181043]
[1743965301602,46.31203368,108.78,108.73,18.64964886]
[1743965301804,0.063,108.78,108.72,82.9]
[1743965302026,46.24903368,108.75,108.71,344.66]
[1743965302231,26.0,108.72,108.63,502.4432]
[1743965302396,26.0,108.72,108.66,46.24903368]
[1743965302601,7.4554,108.75,108.71,46.24903368]
[1743965302895,7.4554,108.75,108.72,46.67551839]
[1743965303299,7.4554,108.75,108.72,0.42648471]
[1743965303532,7.4554,108.75,108.72,46.67551839]
[1743965303818,16.6512,108.75,108.71,0.28432314]
[1743965304231,46.24903368,108.74,108.66,219.6]
[1743965304525,55.44583368,108.74,108.7,0.28432314]
[1743965304728,7.4554,108.75,108.7,0.28432314]
[1743965304927,7.4554,108.75,108.72,0.42648471]
[1743965305105,55.44353368,108.76,108.71,64.89868254]
[1743965305305,9.1945,108.76,108.71,46.24903368]
[1743965305524,46.24903368,108.75,108.69,0.42648471]
[1743965305825,46.24903368,108.75,108.66,82.9]
[1743965306026,46.24903368,108.74,108.7,0.28432314]
[1743965306233,46.24903368,108.74,108.68,0.42648471]
[1743965306411,32.1808,108.76,108.7,46.24903368]
[1743965306617,12.3408,108.77,108.66,82.9]
[1743965306618,46.24903368,108.74,108.66,82.9]
[1743965306918,46.24903368,108.74,108.69,46.24903368]
[1743965307116,46.24903368,108.73,108.69,0.14216157]
[1743965307310,46.24903368,108.73,108.69,0.28432314]
[1743965307627,46.24903368,108.74,108.7,0.14216157]
[1743965307832,55.44483368,108.75,108.71,0.28432314]
[1743965308128,78.43333368,108.75,108.66,46.24903368]
[1743965308426,78.43333368,108.75,108.61,447.3]
[1743965308427,46.24903368,108.71,108.65,46.24903368]
[1743965308632,9.2021,108.67,108.61,427.3]
[1743965308834,46.24903368,108.66,108.61,427.3]
[1743965309031,32.2075,108.67,108.61,344.4]
[1743965309232,46.24903368,108.62,108.59,0.03]
[1743965309436,26.0,108.62,108.59,0.03]
[1743965309640,92.49806736,108.6,108.59,0.03]
[1743965309836,7.4554,108.61,108.59,0.03]
[1743965310208,26.0,108.64,108.59,0.03]
[1743965310532,46.24903368,108.65,108.59,46.27903368]
[1743965310727,55.45353368,108.65,108.6,46.24903368]
[1743965311035,9.2045,108.65,108.6,0.42648471]
[1743965311210,46.24903368,108.64,108.6,0.42648471]
[1743965311535,9.2045,108.65,108.59,0.17216157]
[1743965311838,9.2032,108.66,108.61,0.14216157]
[1743965312039,7.4554,108.67,108.63,46.24903368]
[1743965312340,19.7962,108.73,108.65,46.24903368]
[1743965312507,46.24903368,108.7,108.65,46.24903368]
[1743965312703,46.24903368,108.7,108.64,0.42648471]
[1743965312909,9.1995,108.71,108.66,46.39119525]
[1743965313343,9.1995,108.71,108.65,0.28432314]
[1743965313344,46.24903368,108.7,108.65,0.28432314]
[1743965313634,55.44723368,108.72,108.66,0.14216157]
[1743965313802,55.44723368,108.72,108.67,46.24903368]
[1743965314222,55.44723368,108.72,108.66,0.42648471]
[1743965314223,46.24903368,108.71,108.66,46.67551839]
[1743965314432,9.1982,108.72,108.67,0.14216157]
[1743965314642,55.44723368,108.72,108.67,46.39119525]
[1743965314937,46.24903368,108.71,108.67,0.14216157]
[1743965315245,46.24903368,108.69,108.61,82.9]
[1743965315408,46.24903368,108.66,108.6,136.7]
[1743965315615,26.0,108.62,108.59,0.03]
[1743965315818,26.0,108.61,108.59,0.03]
[1743965316037,46.24903368,108.6,108.59,0.03]
[1743965316419,26.0,108.61,108.59,0.03]
[1743965316929,46.24903368,108.61,108.59,0.03]
[1743965317115,15.9621,108.64,108.59,46.42119525]
[1743965317312,62.21113368,108.64,108.6,0.28432314]
[1743965317513,15.9621,108.64,108.6,0.14216157]
[1743965317720,6.7573,108.64,108.61,0.28432314]
[1743965317921,6.7573,108.64,108.6,18.79181043]
[1743965317922,6.7573,108.64,108.6,0.42648471]
[1743965318131,15.962,108.64,108.59,0.03]
[1743965318323,6.7573,108.64,108.62,0.28432314]
[1743965318517,53.00633368,108.64,108.59,46.27903368]
[1743965318717,53.00633368,108.64,108.59,46.70551839]
[1743965318910,6.7573,108.64,108.61,46.67551839]
[1743965319115,12.1341,108.68,108.63,46.67551839]
[1743965319342,30.4963,108.7,108.66,0.42648471]
[1743965319343,7.497,108.7,108.66,0.42648471]
[1743965319640,46.24903368,108.68,108.64,0.42648471]
[1743965319825,46.24903368,108.69,108.64,46.67551839]
[1743965320024,46.24903368,108.69,108.64,46.24903368]
[1743965320226,46.24903368,108.65,108.62,344.58]
[1743965320441,46.24903368,108.64,108.62,344.58]
[1743965320752,55.45453368,108.63,108.59,82.93]
[1743965320938,46.24903368,108.62,108.59,0.03]
[1743965321244,46.24903368,108.6,108.59,0.03]
[1743965321657,26.0,108.6,108.59,0.03]
[1743965321823,72.24903368,108.6,108.59,0.03]
[1743965322017,26.0,108.6,108.59,0.03]
[1743965322213,9.2055,108.63,108.59,0.03]
[1743965322416,9.2044,108.65,108.6,46.24903368]
[1743965322650,12.5622,108.69,108.63,0.14216157]
[1743965322832,12.5622,108.69,108.59,19.10613357]
[1743965322833,46.24903368,108.66,108.59,19.10613357]
[1743965323019,32.2046,108.68,108.62,46.67551839]
[1743965323221,46.24903368,108.66,108.62,0.42648471]
[1743965323423,32.2046,108.68,108.61,46.67551839]
[1743965323626,32.2046,108.68,108.64,46.67551839]
[1743965323627,9.2013,108.68,108.64,46.67551839]
[1743965323823,21.7629,108.69,108.64,46.24903368]
[1743965324030,12.5622,108.69,108.65,46.39119525]
[1743965324353,46.24903368,108.69,108.65,0.14216157]
[1743965324647,46.24903368,108.69,108.64,46.67551839]
[1743965324823,9.2013,108.68,108.64,46.67551839]
[1743965325527,9.2013,108.68,108.62,0.14216157]
[1743965325865,46.24903368,108.66,108.61,46.24903368]
[1743965326039,72.24903368,108.65,108.6,46.24903368]
[1743965326348,46.24903368,108.61,108.59,0.03]
[1743965326649,26.0,108.6,108.59,0.03]
[1743965326830,12.5622,108.64,108.59,0.03]
[1743965327033,21.7671,108.64,108.59,46.42119525]
[1743965327234,9.2049,108.64,108.59,46.42119525]
[1743965327437,46.24903368,108.63,108.59,0.31432314]
[1743965327639,9.2049,108.64,108.59,0.31432314]
[1743965327844,9.2049,108.64,108.6,46.24903368]
[1743965328324,9.2042,108.65,108.61,46.67551839]
[1743965328653,7.497,108.7,108.64,46.67551839]
[1743965328849,7.497,108.7,108.66,46.24903368]
[1743965329148,32.1933,108.72,108.68,46.24903368]
[1743965329149,9.1979,108.72,108.68,46.24903368]
[1743965329355,68.00853368,108.73,108.68,46.24903368]
[1743965329518,16.6927,108.75,108.7,46.24903368]
[1743965329732,7.497,108.75,108.69,0.42648471]
[1743965329948,53.74603368,108.75,108.7,46.24903368]
[1743965330154,7.497,108.75,108.71,46.24903368]
[1743965330356,7.497,108.75,108.73,46.24903368]
[1743965330562,46.31203368,108.78,108.72,0.42648471]
[1743965330731,46.24903368,108.76,108.69,18.64964886]
[1743965331063,0.063,108.78,108.74,46.24903368]
[1743965331262,0.063,108.78,108.76,0.42648471]
[1743965331633,0.063,108.78,108.75,46.53335682]
[1743965331962,0.063,108.78,108.77,0.42648471]
[1743965332337,0.063,108.78,108.77,65.32516725]
[1743965332758,0.063,108.78,108.77,294.11886725]
[1743965332958,0.063,108.84,108.83,46.67551839]
[1743965333165,0.063,108.84,108.83,65.32516725]
[1743965333337,0.063,108.84,108.83,409.84516725]
[1743965334064,0.063,108.84,108.83,344.52]
[1743965334266,0.063,108.84,108.83,344.94648471]
[1743965334470,0.063,108.84,108.83,409.84516725]
[1743965335073,0.063,108.84,108.83,419.03376725]
[1743965335363,0.063,108.84,108.83,409.84516725]
[1743965335534,0.063,108.84,108.83,344.52]
[1743965336169,0.063,108.84,108.83,391.19551839]
[1743965336343,0.063,108.84,108.83,409.84516725]
[1743965337270,0.063,108.89,108.88,0.14216157]
[1743965337468,0.063,108.89,108.88,0.42648471]
[1743965337668,0.063,108.89,108.88,65.32516725]
[1743965337849,0.063,108.89,108.88,46.67551839]
[1743965338055,0.063,108.89,108.88,46.24903368]
[1743965338249,0.063,108.89,108.88,65.32516725]
[1743965338444,0.063,108.89,108.84,18.933972]
[1743965338651,0.063,108.89,108.87,46.24903368]
[1743965338858,0.063,108.89,108.86,0.28432314]
[1743965339169,0.063,108.89,108.86,0.42648471]
[1743965339352,0.063,108.89,108.83,427.42]
[1743965339553,0.063,108.89,108.84,65.04084411]
[1743965339872,72.31203368,108.89,108.84,0.14216157]
[1743965340163,72.31203368,108.89,108.84,46.39119525]
[1743965340371,72.31203368,108.89,108.78,82.9]
[1743965340372,46.24903368,108.85,108.78,82.9]
[1743965340672,0.42648471,108.85,108.75,344.18]
[1743965340859,26.0,108.82,108.76,46.24903368]
[1743965341055,46.24903368,108.81,108.75,344.18]
[1743965341261,46.24903368,108.79,108.75,344.18]
[1743965341450,46.24903368,108.78,108.75,344.18]
[1743965341777,46.24903368,108.77,108.73,14.15231627]
[1743965341977,46.24903368,108.74,108.73,14.15231627]
[1743965342277,19.07613357,108.74,108.73,6.65271627]
[1743965342475,7.103,108.78,108.73,6.65271627]
[1743965342948,46.24903368,108.75,108.73,6.65271627]
[1743965343150,9.1937,108.77,108.73,6.65271627]
[1743965343374,46.24903368,108.74,108.73,6.65271627]
[1743965343541,64.89868254,108.74,108.73,6.65271627]
[1743965343745,18.64964886,108.74,108.73,6.65271627]
[1743965344078,18.64964886,108.73,108.72,28.23869543]
[1743965344373,64.89868254,108.73,108.65,46.24903368]
[1743965344684,26.0,108.72,108.67,0.14216157]
[1743965344968,46.24903368,108.72,108.67,46.39119525]
[1743965345145,19.07613357,108.73,108.63,344.16]
[1743965345343,9.1963,108.74,108.67,0.14216157]
[1743965345344,46.24903368,108.71,108.67,0.14216157]
[1743965345574,9.1963,108.74,108.67,46.39119525]
[1743965345575,46.24903368,108.72,108.67,46.39119525]
[1743965345775,46.24903368,108.73,108.68,46.24903368]
[1743965345952,7.103,108.78,108.71,0.14216157]
[1743965346270,53.35203368,108.78,108.73,0.14216157]
[1743965346452,53.35203368,108.78,108.69,19.07613357]
[1743965346453,46.24903368,108.75,108.69,19.07613357]
[1743965346645,46.24903368,108.71,108.66,18.933972]
[1743965346851,9.1962,108.74,108.68,0.28432314]
[1743965347051,46.24903368,108.73,108.67,0.28432314]
[1743965347249,46.24903368,108.71,108.65,82.9]
[1743965347559,46.24903368,108.7,108.65,46.24903368]
[1743965347751,46.24903368,108.7,108.64,18.79181043]
[1743965347951,0.28432314,108.73,108.64,0.14216157]
[1743965348160,26.0,108.71,108.65,0.14216157]
[1743965348387,46.24903368,108.7,108.65,46.53335682]
[1743965348562,78.43313368,108.75,108.67,46.24903368]
[1743965348771,46.24903368,108.75,108.7,46.53335682]
[1743965348974,46.24903368,108.77,108.71,0.14216157]
[1743965349267,46.24903368,108.73,108.65,55.45203368]
[1743965349466,46.24903368,108.69,108.63,344.16]
[1743965349774,46.24903368,108.68,108.64,0.42648471]
[1743965350067,46.24903368,108.7,108.65,46.24903368]
[1743965350369,26.0,108.75,108.68,46.53335682]
[1743965350573,18.933972,108.77,108.69,46.24903368]
[1743965350761,46.24903368,108.73,108.68,0.14216157]
[1743965350959,46.24903368,108.73,108.68,46.39119525]
[1743965351175,46.24903368,108.74,108.69,46.24903368]
[1743965351354,9.1961,108.75,108.68,0.28432314]
[1743965351670,55.44353368,108.76,108.71,46.24903368]
[1743965351965,58.38033368,108.79,108.74,0.42648471]
[1743965352146,0.14216157,108.78,108.68,92.1013]
[1743965352351,0.14216157,108.78,108.67,136.7]
[1743965352352,46.24903368,108.72,108.67,136.7]
[1743965352555,46.24903368,108.72,108.67,46.39119525]
[1743965352948,46.24903368,108.72,108.63,434.5464]
[1743965352949,46.24903368,108.68,108.63,390.40903368]
[1743965353147,46.24903368,108.68,108.64,0.14216157]
[1743965353471,46.24903368,108.66,108.63,344.16]
[1743965353676,46.24903368,108.64,108.61,0.03]
[1743965353968,46.24903368,108.62,108.61,0.03]
[1743965354366,64.89868254,108.62,108.61,0.03]
[1743965354754,46.53335682,108.65,108.61,0.03]
[1743965354973,72.24903368,108.65,108.61,0.03]
[1743965355146,46.24903368,108.66,108.61,46.42119525]
[1743965355346,46.24903368,108.66,108.61,0.17216157]
[1743965355749,46.24903368,108.64,108.61,0.03]
[1743965355946,46.24903368,108.65,108.61,0.03]
[1743965356253,46.24903368,108.64,108.61,0.03]
[1743965356568,26.0,108.64,108.61,0.03]
[1743965356867,46.24903368,108.63,108.61,0.03]
[1743965357171,23.28602314,108.69,108.61,46.70551839]
[1743965357362,9.2013,108.68,108.61,46.70551839]
[1743965357669,46.24903368,108.66,108.61,0.45648471]
[1743965357845,46.24903368,108.63,108.61,0.03]
[1743965358044,46.24903368,108.65,108.61,0.03]
[1743965358269,46.24903368,108.63,108.61,0.03]
[1743965359165,46.24903368,108.62,108.61,0.03]
[1743965359474,46.67551839,108.62,108.61,0.03]
[1743965359655,111.57420093,108.62,108.61,0.0001]
[1743965359858,92.92455207,108.62,108.61,0.0001]
[1743965360159,9.2054,108.64,108.61,0.0001]
[1743965360478,46.24903368,108.62,108.61,0.0001]
[1743965360847,72.24903368,108.62,108.61,0.0001]
[1743965361053,13.44868471,108.61,108.59,0.03]
[1743965361372,46.24903368,108.61,108.59,0.03]
[1743965362070,9.2038,108.65,108.59,0.03]
[1743965362247,46.24903368,108.67,108.62,46.24903368]
[1743965362667,46.24903368,108.63,108.59,0.03]
[1743965362870,46.24903368,108.62,108.59,0.03]
[1743965363046,55.45693368,108.61,108.59,0.03]
[1743965363250,9.2055,108.63,108.59,0.03]
[1743965364067,46.24903368,108.61,108.59,0.03]
[1743965364276,9.2055,108.63,108.59,0.03]
[1743965364465,46.24903368,108.62,108.59,0.03]
[1743965364972,9.2072,108.61,108.59,0.03]
[1743965365174,46.24903368,108.62,108.59,0.03]
[1743965365354,55.45453368,108.63,108.59,0.03]
[1743965365557,46.24903368,108.6,108.59,0.03]
[1743965366250,92.92455207,108.6,108.59,0.0001]
[1743965366876,46.24903368,108.6,108.59,0.0001]
[1743965367049,9.2081,108.6,108.59,0.0001]
[1743965367252,9.2074,108.61,108.59,0.0001]
[1743965367566,46.24903368,108.6,108.59,0.0001]
[1743965368076,92.92455207,108.6,108.59,0.0001]
[1743965368390,92.92455207,108.6,108.54,0.03]
[1743965368391,19.07613357,108.56,108.54,0.03]
[1743965368556,26.0,108.54,108.53,0.03]
[1743965368756,72.24903368,108.54,108.53,0.03]
[1743965368964,81.46213368,108.54,108.53,0.03]
[1743965369165,100.53826725,108.54,108.53,0.0001]
[1743965369476,26.14216157,108.51,108.49,0.03]
[1743965369780,26.0,108.46,108.4,46.24903368]
[1743965370073,46.53335682,108.45,108.41,30.0]
[1743965370284,46.24903368,108.42,108.41,30.0]
[1743965370461,12.3251,108.47,108.41,30.0]
[1743965370864,12.3251,108.47,108.42,28.29326016]
[1743965371086,9.2183,108.48,108.43,30.0]
[1743965371271,46.24903368,108.51,108.45,0.28432314]
[1743965371463,0.14216157,108.51,108.44,46.24903368]
[1743965371786,0.42648471,108.49,108.43,30.0]
[1743965372163,26.0,108.47,108.43,30.0]
[1743965372358,46.24903368,108.46,108.43,30.0]
[1743965372559,46.24903368,108.44,108.43,30.0]
[1743965372759,26.0,108.45,108.43,30.0]
[1743965372979,55.47063368,108.44,108.43,30.0]
[1743965373185,26.0,108.45,108.43,30.0]
[1743965373361,26.0,108.44,108.43,30.0]
[1743965373556,72.24903368,108.44,108.43,30.0]
[1743965373765,13.2643,108.48,108.43,30.0]
[1743965374077,46.24903368,108.47,108.43,30.0]
[1743965374278,46.24903368,108.48,108.43,76.24903368]
[1743965374574,46.24903368,108.49,108.44,65.32516725]
[1743965374784,46.24903368,108.5,108.44,49.07613357]
[1743965374963,54.94684886,108.54,108.44,58.29773357]
[1743965375168,9.2127,108.55,108.5,46.24903368]
[1743965375369,9.2127,108.55,108.48,19.07613357]
[1743965375787,13.69078471,108.59,108.53,46.24903368]
[1743965375788,13.40646157,108.59,108.53,46.24903368]
[1743965375995,59.51333368,108.59,108.54,46.24903368]
[1743965376174,46.24903368,108.57,108.5,0.42648471]
[1743965376378,46.24903368,108.56,108.51,46.24903368]
[1743965376695,22.4733,108.59,108.53,46.24903368]
[1743965376890,9.2083,108.6,108.52,0.28432314]
[1743965377083,46.24903368,108.6,108.55,46.24903368]
[1743965377292,9.2059,108.63,108.58,46.24903368]
[1743965377470,29.847,108.67,108.59,46.24903368]
[1743965377671,46.24903368,108.62,108.58,19.07613357]
[1743965377900,0.063,108.61,108.58,19.07613357]
[1743965378071,0.063,108.61,108.58,65.32516725]
[1743965378267,0.063,108.61,108.6,46.24903368]
[1743965378471,0.063,108.61,108.6,65.32516725]
[1743965378672,0.063,108.61,108.57,19.07613357]
[1743965378890,0.063,108.61,108.58,46.24903368]
[1743965379476,26.0,108.59,108.56,344.98]
[1743965379667,72.24903368,108.59,108.56,344.98]
[1743965379874,26.0,108.59,108.56,344.98]
[1743965380073,26.0,108.6,108.56,344.98]
[1743965380287,72.24903368,108.6,108.56,344.98]
[1743965380502,26.0,108.6,108.56,344.98]
[1743965380799,72.24903368,108.6,108.56,344.98]
[1743965381005,0.063,108.61,108.58,46.24903368]
[1743965381207,72.31203368,108.61,108.56,344.98]
[1743965381502,46.24903368,108.6,108.56,344.98]
[1743965382075,26.0,108.56,108.46,12.5448]
[1743965382307,46.24903368,108.54,108.48,76.24903368]
[1743965382481,0.14216157,108.57,108.48,30.0]
[1743965382482,46.24903368,108.52,108.48,30.0]
[1743965382683,46.24903368,108.51,108.48,30.0]
[1743965382888,46.24903368,108.5,108.47,344.88]
[1743965383072,9.2182,108.48,108.44,182.94903368]
[1743965383273,9.2182,108.48,108.39,344.86]
[1743965383274,46.24903368,108.53,108.47,46.24903368]
[1743965383594,9.2131,108.54,108.5,46.24903368]
[1743965383798,9.2131,108.54,108.48,0.14216157]
[1743965383799,55.46213368,108.54,108.48,0.14216157]
[1743965383976,46.24903368,108.53,108.46,30.0]
[1743965384184,46.24903368,108.53,108.47,65.32516725]
[1743965384394,46.24903368,108.53,108.48,46.24903368]
[1743965385204,9.2131,108.54,108.49,19.07613357]
[1743965385414,9.2131,108.54,108.5,46.24903368]
[1743965385586,46.24903368,108.52,108.48,344.86]
[1743965385783,46.24903368,108.52,108.46,30.0]
[1743965385784,46.24903368,108.49,108.46,30.0]
[1743965386203,46.24903368,108.48,108.46,30.0]
[1743965386511,46.24903368,108.48,108.39,46.24903368]
[1743965386512,26.0,108.44,108.39,46.24903368]
[1743965386698,46.24903368,108.43,108.37,19.10613357]
[1743965386891,26.0,108.46,108.41,46.24903368]
[1743965387089,9.2208,108.45,108.41,46.24903368]
[1743965387393,55.46983368,108.45,108.4,46.24903368]
[1743965387589,46.24903368,108.43,108.37,0.03]
[1743965387908,46.24903368,108.44,108.39,46.24903368]
[1743965388113,46.24903368,108.44,108.38,18.79181043]
[1743965388279,32.2728,108.45,108.4,46.24903368]
[1743965388482,9.2208,108.45,108.41,46.24903368]
[1743965388792,9.2208,108.45,108.42,46.24903368]
[1743965389199,9.2208,108.45,108.4,0.14216157]
[1743965389506,55.46983368,108.45,108.4,30.0]
[1743965389811,9.2208,108.45,108.4,30.0]
[1743965390006,6.7878,108.48,108.43,46.24903368]
[1743965390226,19.1913,108.53,108.42,19.07613357]
[1743965390390,46.24903368,108.51,108.44,0.42648471]
[1743965390592,46.24903368,108.52,108.46,46.24903368]
[1743965390903,9.2148,108.52,108.48,46.24903368]
[1743965391208,9.2148,108.52,108.46,19.07613357]
[1743965391209,9.2148,108.52,108.49,46.24903368]
[1743965391608,9.2141,108.53,108.5,46.24903368]
[1743965391980,9.2141,108.53,108.48,0.42648471]
[1743965392321,46.24903368,108.52,108.45,345.04]
[1743965392617,46.24903368,108.51,108.46,46.24903368]
[1743965392802,9.2141,108.53,108.49,46.24903368]
[1743965393183,9.2135,108.54,108.5,46.24903368]
[1743965393383,9.2135,108.54,108.49,0.28432314]
[1743965393582,9.2135,108.54,108.45,427.94]
[1743965393583,46.24903368,108.53,108.45,427.94]
[1743965393783,46.24903368,108.53,108.48,46.24903368]
[1743965394097,46.24903368,108.52,108.46,18.64964886]
[1743965394288,26.0,108.51,108.48,46.24903368]
[1743965394617,26.0,108.51,108.47,0.42648471]
[1743965394819,26.0,108.51,108.47,46.67551839]
[1743965395123,9.2753,108.55,108.49,46.24903368]
[1743965395497,46.24903368,108.54,108.49,65.32516725]
[1743965396011,46.24903368,108.54,108.49,46.24903368]
[1743965396312,46.24903368,108.51,108.46,46.24903368]
[1743965396607,72.24903368,108.47,108.41,0.14216157]
[1743965396809,46.24903368,108.45,108.42,30.0]
[1743965397003,46.24903368,108.44,108.42,30.0]
[1743965397196,46.37942314,108.48,108.42,30.0]
[1743965397385,26.0,108.44,108.42,30.0]
[1743965398607,46.24903368,108.46,108.41,76.24903368]
[1743965398811,9.2182,108.48,108.43,46.24903368]
[1743965399108,55.46723368,108.48,108.43,46.53335682]
[1743965399411,46.24903368,108.47,108.43,0.28432314]
[1743965399611,55.46723368,108.48,108.43,46.53335682]
[1743965399903,46.24903368,108.47,108.43,0.28432314]
[1743965400111,46.24903368,108.46,108.42,18.79181043]
[1743965400306,55.46723368,108.48,108.43,46.53335682]
[1743965400483,9.2157,108.51,108.47,46.24903368]
[1743965400683,46.24903368,108.49,108.44,19.07613357]
[1743965400899,46.24903368,108.49,108.43,30.0]
[1743965401115,46.24903368,108.44,108.43,30.0]
[1743965401609,46.24903368,108.46,108.43,30.0]
[1743965402296,26.0,108.47,108.43,76.24903368]
[1743965402485,72.24903368,108.47,108.43,18.933972]
[1743965402685,26.0,108.47,108.43,48.933972]
[1743965402911,46.24903368,108.45,108.43,30.0]
[1743965403085,46.24903368,108.46,108.44,0.14216157]
[1743965403290,46.24903368,108.45,108.43,30.0]
[1743965403486,26.0,108.46,108.43,30.0]
[1743965403688,46.24903368,108.44,108.43,30.0]
[1743965404089,26.0,108.42,108.37,46.42119525]
[1743965404305,46.24903368,108.41,108.37,0.03]
[1743965404590,26.0,108.42,108.37,0.03]
[1743965404813,46.24903368,108.4,108.38,0.03]
[1743965405012,46.24903368,108.39,108.38,0.03]
[1743965405248,26.0,108.4,108.38,0.03]
[1743965405617,46.24903368,108.41,108.38,0.03]
[1743965405829,32.2788,108.43,108.38,0.03]
[1743965405830,26.0,108.4,108.38,0.03]
[1743965406022,46.24903368,108.39,108.38,0.03]
[1743965406441,97.46753357,108.43,108.38,0.03]
[1743965406442,26.0,108.4,108.38,0.03]
[1743965406640,46.24903368,108.39,108.38,0.03]
[1743965406951,73.91103368,108.44,108.39,18.64964886]
[1743965407141,23.0484,108.47,108.41,18.64964886]
[1743965407324,9.2182,108.48,108.44,65.32516725]
[1743965407522,55.46683368,108.49,108.44,65.32516725]
[1743965407744,35.7041,108.53,108.47,46.24903368]
[1743965407933,46.24903368,108.5,108.46,19.07613357]
[1743965408116,46.24903368,108.48,108.4,9.225]
[1743965408324,32.252,108.52,108.44,46.24903368]
[1743965408524,46.24903368,108.5,108.45,46.24903368]
[1743965408727,46.24903368,108.48,108.43,19.07613357]
[1743965408941,46.24903368,108.46,108.4,19.07613357]
[1743965409249,46.24903368,108.45,108.4,65.18300568]
[1743965409457,46.24903368,108.44,108.4,18.933972]
[1743965409756,32.2639,108.48,108.42,46.53335682]
[1743965409757,46.24903368,108.47,108.42,46.53335682]
[1743965409961,46.24903368,108.45,108.39,265.84903368]
[1743965410126,46.24903368,108.43,108.38,345.29]
[1743965410328,46.24903368,108.45,108.38,391.53903368]
[1743965410649,46.24903368,108.45,108.38,345.29]
[1743965410859,46.24903368,108.42,108.38,345.29]
[1743965411034,46.24903368,108.41,108.38,0.03]
[1743965411229,46.24903368,108.42,108.38,18.67964886]
[1743965411423,9.2208,108.45,108.39,19.07613357]
[1743965411650,9.2208,108.45,108.4,46.24903368]
[1743965411825,9.2191,108.47,108.41,0.42648471]
[1743965412027,46.24903368,108.46,108.41,46.67551839]
[1743965412243,9.2178,108.49,108.43,0.42648471]
[1743965412557,55.46683368,108.49,108.43,65.32516725]
[1743965412752,9.2178,108.49,108.43,0.42648471]
[1743965412930,46.24903368,108.48,108.43,46.53335682]
[1743965413129,9.2208,108.45,108.42,18.79181043]
[1743965413327,9.2174,108.49,108.43,0.28432314]
[1743965413642,46.24903368,108.45,108.41,345.24]
[1743965413852,46.24903368,108.44,108.41,345.24]
[1743965414146,46.24903368,108.46,108.41,46.24903368]
[1743965414647,46.24903368,108.44,108.38,82.93]
[1743965414829,46.24903368,108.4,108.38,0.03]
[1743965415152,55.47493368,108.39,108.38,0.03]
[1743965415328,55.47493368,108.39,108.38,0.0001]
[1743965415526,74.55106725,108.39,108.38,0.0001]
[1743965415729,26.0,108.35,108.33,0.03]